Cogmind - Beta 11 @@@ ROGUE MODE // 2022.03.17 @ 22:15:28 Player: drchaos820 Result: Destroyed by G-47 Trooper with Particle Gun Performance ------------- Evolutions (2) 1000 Regions Visited (5) 1000 Robots Destroyed (18) 90 Value Destroyed (659) 659 Prototype IDs (1) 20 Alien Tech Used (0) 0 Bonus (155) 155 TOTAL SCORE: 2924 Bonus ------- Follower Combat Kills 190 Friendly Fire -35 Cogmind --------- Core Integrity 0/550 Matter 30/300 Energy 109/125 System Corruption 0% Temperature Hot (219) Movement Walking (470) Ox5 Location -8/Materials Parts ------- > --- POWER (1) -------- Light Ion Engine > --- PROPULSION (2) --- Aluminum Leg Makeshift Leg > --- UTILITY (6) ------ High-capacity Storage Unit Improved Terrain Scanner Seismic Detector > --- WEAPON (2) ------- Beam Cannon Missile Launcher > --- INVENTORY (20) --- Improved Ion Engine Medium Storage Unit Large Storage Unit High-capacity Storage Unit High-capacity Matter Pod (200) Compact Matter Pod (0) Datajack Peak State ------------ > --- POWER ------------ Light Nuclear Core > --- PROPULSION ------- Wheel Compact Wheel > --- UTILITY ---------- High-capacity Storage Unit Small Battery Sensor Array Experimental Sensor Array Signal Interpreter Seismic Detector > --- WEAPON ----------- Beam Cannon Beam Cannon > --- INVENTORY -------- Light Ion Engine Aluminum Leg Medium Storage Unit Large Storage Unit High-capacity Storage Unit High-capacity Matter Pod Compact Matter Pod Improved Terrain Scanner Light Armor Plating Ion Cannon Assault Rifle Light Assault Rifle Grenade Launcher Grenade Launcher Datajack [Rating: 23] Favorites ----------- Power Light Nuclear Core Engine Light Ion Engine Power Core Light Nuclear Core Propulsion Aluminum Leg Leg Aluminum Leg Wheel Compact Wheel Utility Large Storage Unit Device Heat Sink Storage Large Storage Unit Processor Signal Interpreter Protection Light Armor Plating Weapon Beam Cannon Energy Gun Medium Laser Energy Cannon Beam Cannon Ballistic Gun Light Assault Rifle Launcher Grenade Launcher Build | -11 -10 -10 -10 -9 -8 ------- Run | Scr Mat Min Exi Min Mat Slots Evolved 4 | . . . . . 4 Power . | . . . . . . Propulsion . | . . . . . . Utility 4 | . . . . . 4 Weapon . | . . . . . . Parts Attached 40 | 6 8 3 4 . 19 Power 5 | 1 2 1 . . 1 Engine 4 | 1 2 . . . 1 Core 1 | . . 1 . . . Reactor . | . . . . . . Propulsion 7 | 2 1 . 1 . 3 Treads . | . . . . . . Leg 5 | 2 1 . . . 2 Wheel 2 | . . . 1 . 1 Hover . | . . . . . . Flight . | . . . . . . Utility 15 | 1 4 2 1 . 7 Device 6 | . 2 . . . 4 Storage 6 | 1 2 . 1 . 2 Processor 1 | . . 1 . . . Hackware . | . . . . . . Protection 2 | . . 1 . . 1 Artifact . | . . . . . . Weapon 13 | 2 1 . 2 . 8 Energy Gun 1 | 1 . . . . . Energy Cannon 4 | . 1 . 1 . 2 Ballistic Gun 4 | 1 . . . . 3 Ballistic Cannon . | . . . . . . Launcher 4 | . . . 1 . 3 Special Weapon . | . . . . . . Impact Weapon . | . . . . . . Slashing Weapon . | . . . . . . Piercing Weapon . | . . . . . . Special Melee Weapon . | . . . . . . Unidentified Prototypes 1 | . . . . . 1 Parts Lost 19 | . 5 . . . 14 Power 3 | . 2 . . . 1 Propulsion 4 | . 2 . . . 2 Utility 6 | . 1 . . . 5 Weapon 6 | . . . . . 6 Highest Loss Streak 12 | . 2 . . . 12 To Critical Strikes . | . . . . . . Average Slot Usage (%) 88 | . 92 84 87 100 81 Engine 4 | . 13 1 . . . Core 8 | . . 12 14 14 6 Leg 15 | . 23 14 14 14 4 Wheel 2 | . . . 2 14 10 Device 7 | . 12 4 . . 21 Storage 14 | . 14 14 14 14 15 Processor 7 | . . 9 14 14 6 Energy Gun 2 | . 6 . . . . Energy Cannon 13 | . 7 14 17 28 13 Ballistic Gun 10 | . 14 14 10 . . Naked Turns . | . . . . . . Heaviest Build 55 | 11 28 32 51 51 55 Greatest Support 26 | 20 20 10 16 16 26 Greatest Overweight (x) 18 | . 9 3 5 3 18 Average Overweight (x) 1 | . 1 2 2 3 2 Largest Inventory Capacity 20 | 8 15 15 20 20 20 Average Capacity 15 | 7 14 15 15 20 20 Most Carried 18 | 3 14 15 16 15 18 Average Carried 13 | . 10 14 15 15 14 Final Capacity 20 | 8 15 15 20 20 20 Final Carried 15 | 2 14 15 15 15 7 Class Distribution -------------------- 100% | Mutant Dominant Class ---------------- Mutant | -10/Materials Mutant | -10/Mines Mutant | -10/Exiles Mutant | -9/Mines Mutant | -8/Materials Resources | -11 -10 -10 -10 -9 -8 ----------- Run | Scr Mat Min Exi Min Mat Matter Collected 710 | 165 403 37 . . 105 Remotely 184 | . 184 . . . . Salvage Created 658 | . 403 . . . 255 Parts 27 | . 15 . . . 12 Haulers Intercepted . | . . . . . . Recyclers Shooed . | . . . . . . Parts Field Recycled . | . . . . . . Retrieved Matter . | . . . . . . Parts Self-Destructed . | . . . . . . Prevented . | . . . . . . Kills | -11 -10 -10 -10 -9 -8 ------- Run | Scr Mat Min Exi Min Mat Combat Hostiles Destroyed 14 | . 8 . . . 6 Guns 7 | . 6 . . . 1 Cannons 5 | . 2 . . . 3 AOE 1 | . . . . . 1 Classes Destroyed 7 | . 4 . . . 3 Builder 1 | . 1 . . . . Operator 1 | . 1 . . . . Watcher 2 | . 1 . . . 1 Swarmer 1 | . . . . . 1 Grunt 10 | . 8 . . . 2 Specialist 2 | . . . . . 2 Heavy 1 | . . . . . 1 Best Kill Streak 3 | . 3 . . . 2 Combat Bots Only 3 | . 3 . . . 2 Max Kills in Single Turn 1 | . 1 . . . 1 Gunslinging . | . . . . . . Exploded 1 | . . . . . 1 Melee . | . . . . . . Uniques/NPCs Destroyed . | . . . . . . Combat | -11 -10 -10 -10 -9 -8 -------- Run | Scr Mat Min Exi Min Mat Damage Taken 2441 | . 838 . . . 1603 Core 751 | . 193 . . . 558 Absorbed by Shields . | . . . . . . Core Remaining (%) 61 | 100 . . . 22 . Volleys Fired 109 | . 60 . 4 . 45 Largest 2 | . 2 . 2 . 2 Hottest 120 | . 80 . 90 . 120 Shots Fired 191 | . 120 . 8 . 63 Gun 110 | . 97 . 3 . 10 Cannon 64 | . 23 . 4 . 37 Launcher 17 | . . . 1 . 16 Special . | . . . . . . Kinetic 73 | . 60 . 3 . 10 Thermal 101 | . 60 . 4 . 37 Explosive 17 | . . . 1 . 16 Electromagnetic . | . . . . . . Robot Hit Streak 12 | . 12 . . . 8 Robot Miss Streak 4 | . 4 . . . 4 Penetration Max . | . . . . . . Secondary Targets 2 | . 1 . . . 1 Max Gunslinging Chain 1 | . 1 . . . 1 Shots Hit Robots 105 | . 71 . . . 34 Core Hits 46 | . 25 . . . 21 Critical Kills 1 | . . . . . 1 Critical Parts Destroyed . | . . . . . . Critical Strikes 1 | . . . . . 1 Meltdown 1 | . . . . . 1 Melee Attacks . | . . . . . . Impact . | . . . . . . Slashing . | . . . . . . Piercing . | . . . . . . Sneak Attacks . | . . . . . . Combat Hostiles . | . . . . . . Follow-up Attacks . | . . . . . . Damage Inflicted 1656 | . 829 . . . 827 Guns 675 | . 568 . . . 107 Cannons 559 | . 261 . . . 298 Explosions 422 | . . . . . 422 Melee . | . . . . . . Ramming . | . . . . . . Kinetic 369 | . 262 . . . 107 Thermal 865 | . 567 . . . 298 Explosive 422 | . . . . . 422 Electromagnetic . | . . . . . . Impact . | . . . . . . Slashing . | . . . . . . Piercing . | . . . . . . Highest Corruption . | . . . . . . Average Corruption . | . . . . . . Corruption Purged . | . . . . . . Corruption Blocked . | . . . . . . Overload Shots . | . . . . . . Overflow Damage 1 | . . . . . 1 Projectiles . | . . . . . . Explosions 1 | . . . . . 1 Melee . | . . . . . . Knockbacks . | . . . . . . Impact . | . . . . . . Kinetic . | . . . . . . Secondary . | . . . . . . Self-Inflicted Damage 63 | . . . . . 63 Shots 2 | . . . . . 2 Rammed . | . . . . . . Targets Rammed . | . . . . . . Kicked . | . . . . . . Crushed . | . . . . . . Highest Temperature 259 | . 106 . 96 . 259 Average Temperature 43 | . 28 . 40 . 73 Received Heat Transfer 936 | . 468 . . . 468 Effects 3 | . . . . . 3 Energy Bleed 1 | . . . . . 1 Interference 2 | . . . . . 2 Siege Activations . | . . . . . . Robots Corrupted . | . . . . . . Combat Hostiles . | . . . . . . Parts Fried . | . . . . . . Impact Corruptions . | . . . . . . Robots Melted 1 | . . . . . 1 Combat Hostiles 1 | . . . . . 1 Parts Melted 3 | . 1 . . . 2 Heat Transferred 2035 | . 1443 . . . 592 Parts Sabotaged . | . . . . . . Parts Stolen . | . . . . . . Parts Stripped . | . . . . . . Power Chain Reactions . | . . . . . . Missiles Intercepted . | . . . . . . Alert | -11 -10 -10 -10 -9 -8 ------- Run | Scr Mat Min Exi Min Mat Peak Influence 354 | . 80 . . . 354 Initial . | . . . . . . Average 54 | . 45 . . . 177 Maximum Alert Level 1 | . . . . . 1 Low Security (%) 90 | 100 100 100 . 100 44 Level 1 9 | . . . . . 55 Level 2 . | . . . . . . Level 3 . | . . . . . . Level 4 . | . . . . . . Level 5 . | . . . . . . High Security . | . . . . . . Max Security . | . . . . . . Squads Dispatched 6 | . 2 . . . 4 Investigation 1 | . 1 . . . . Extermination . | . . . . . . Reinforcement 5 | . 1 . . . 4 Assault . | . . . . . . Garrison . | . . . . . . Intercept . | . . . . . . Searches Triggered . | . . . . . . Construction Impeded 2 | . . . . . 2 Haulers Reinforced . | . . . . . . Active Scanning Responses . | . . . . . . Cargo Convoy Interrupts . | . . . . . . Stealth | -11 -10 -10 -10 -9 -8 --------- Run | Scr Mat Min Exi Min Mat Distress Signals 4 | . . . . . 4 Communications Jammed . | . . . . . . Distress Signals . | . . . . . . Times Spotted 36 | . 15 . . . 21 Peak Tracking Total 6 | . 3 . . . 6 Tactical Retreats . | . . . . . . Traps | -11 -10 -10 -10 -9 -8 ------- Run | Scr Mat Min Exi Min Mat Traps Triggered 1 | . 1 . . . . Indirectly . | . . . . . . Trap Hack Attempts . | . . . . . . Triggered . | . . . . . . Disarmed . | . . . . . . Reprogrammed . | . . . . . . Reused . | . . . . . . Traps Extracted . | . . . . . . Installed . | . . . . . . Triggered . | . . . . . . Machines | -11 -10 -10 -10 -9 -8 ---------- Run | Scr Mat Min Exi Min Mat Machines Disabled 4 | . 1 . 3 . . Max in Single Turn 3 | . 1 . 3 . . Machines Sabotaged . | . . . . . . Garrisons Compromised . | . . . . . . Overloaded Fab Kills . | . . . . . . Hacking | -11 -10 -10 -10 -9 -8 --------- Run | Scr Mat Min Exi Min Mat Machines Accessed 10 | . 5 . 4 . 1 Terminals 6 | . 5 . . . 1 Fabricators . | . . . . . . Repair Stations . | . . . . . . Recycling Units . | . . . . . . Scanalyzers . | . . . . . . Garrison Access . | . . . . . . Total Hacks 15 | . 8 . 4 . 3 Successful 7 | . 2 . 4 . 1 Failed 8 | . 6 . . . 2 Catastrophic 1 | . 1 . . . . Database Lockouts . | . . . . . . Manual 3 | . 3 . . . . Terminals 11 | . 8 . . . 3 Fabricators . | . . . . . . Repair Stations . | . . . . . . Recycling Units . | . . . . . . Scanalyzers . | . . . . . . Garrison Access . | . . . . . . Terminal Hacks 7 | . 2 . 4 . 1 Record 4 | . . . 4 . . Branch Access Points 1 | . 1 . . . . Scanalyzer Index 1 | . . . . . 1 Zone Layout 1 | . 1 . . . . Fabricator Hacks . | . . . . . . Repair Station Hacks . | . . . . . . Recycling Unit Hacks . | . . . . . . Scanalyzer . | . . . . . . Garrison Access Hacks . | . . . . . . Unauthorized Hacks . | . . . . . . Terminals . | . . . . . . Fabricators . | . . . . . . Repair Stations . | . . . . . . Recycling Units . | . . . . . . Scanalyzers . | . . . . . . Garrison Access . | . . . . . . Data Cores Recovered . | . . . . . . Used . | . . . . . . Hacking Detections 4 | . 3 . . . 1 Full Trace Events . | . . . . . . Feedback Events . | . . . . . . Feedback Blocked . | . . . . . . Robot Schematics Acquired . | . . . . . . Robots Built . | . . . . . . Authchips . | . . . . . . Time . | . . . . . . Total Robot Build Rating . | . . . . . . Part Schematics Acquired . | . . . . . . Parts Built . | . . . . . . Authchips . | . . . . . . Time . | . . . . . . Total Part Build Rating . | . . . . . . Parts Repaired . | . . . . . . Time . | . . . . . . Parts Recycled . | . . . . . . Recycled Matter . | . . . . . . Retrieved Matter . | . . . . . . Retrieved Components . | . . . . . . Parts Scanalyzed . | . . . . . . Part Schematics Acquired . | . . . . . . Parts Damaged . | . . . . . . Bothacking | -11 -10 -10 -10 -9 -8 ------------ Run | Scr Mat Min Exi Min Mat Used RIF Installer . | . . . . . . Robots Hacked . | . . . . . . Non-combat . | . . . . . . Combat . | . . . . . . Robot Hacks Applied . | . . . . . . Relay Couplers Released . | . . . . . . Fabnet Peak Effective % . | . . . . . . Robots Rewired . | . . . . . . Allies Hacked . | . . . . . . Hacks Repelled . | . . . . . . Allies | -11 -10 -10 -10 -9 -8 -------- Run | Scr Mat Min Exi Min Mat Total Allies 2 | . . . . 2 . Largest Group 2 | . . . . 2 2 Highest-Rated Group 46 | . . . . 46 46 Highest-Rated Ally 31 | . . . . 31 31 Total Orders . | . . . . . . Ally Attacks 36 | . . . . . 36 Total Damage 463 | . . . . . 463 Kills 8 | . . . . . 8 Allies Corrupted . | . . . . . . Allies Melted . | . . . . . . Intel | -11 -10 -10 -10 -9 -8 ------- Run | Scr Mat Min Exi Min Mat Robot Analysis Total . | . . . . . . Derelict Logs Recovered 2 | . . 2 . . . Drone Launches . | . . . . . . Drone Recoveries . | . . . . . . Exploration | -11 -10 -10 -10 -9 -8 ------------- Run | Scr Mat Min Exi Min Mat Turns Passed 3950 | 62 1288 695 1395 56 454 Spaces Moved 1640 | 46 519 262 585 34 194 Core 13 | 5 2 . . . 6 Treads . | . . . . . . Legs 1257 | 41 517 262 437 . . Wheels 370 | . . . 148 34 188 Hover . | . . . . . . Flight . | . . . . . . Fastest Speed 50 | 50 120 260 145 145 120 Average Speed 209 | 112 189 260 235 145 149 Slowest Speed 950 | 120 500 330 470 145 950 Overloaded Moves . | . . . . . . Propulsion Burnouts . | . . . . . . Robots Hopped . | . . . . . . Cave-ins Triggered . | . . . . . . Exploration Rate (%) 42 | 4 76 51 93 8 24 Regions Visited 5 Branch Regions 3 Pre-discovered Areas 1 | . . 1 . . . Known Exits Taken 4 | . 1 1 1 1 . Unknown Exits Taken 1 | 1 . . . . . Scrap Searched 3 | . . 3 . . . Spaces Dug . | . . . . . . Terrain Destroyed 88 | . . . 7 . 81 Melee . | . . . . . . Projectile . | . . . . . . AOE 88 | . . . 7 . 81 Terrain Rammed . | . . . . . . Walls Destroyed . | . . . . . . Machines Disabled . | . . . . . . Actions | -11 -10 -10 -10 -9 -8 --------- Run | Scr Mat Min Exi Min Mat Total 1980 | 54 719 277 594 41 295 Wait 158 | . 115 7 . 8 28 Move 1635 | 45 518 261 584 33 194 Hop . | . . . . . . Pick Up 30 | 3 16 3 1 . 7 Fast Attach 9 | 5 2 1 . . 1 Attach 25 | 1 5 1 1 . 17 Detach 3 | . 1 . . . 2 Swap 6 | . 1 1 3 . 1 Drop 5 | . 1 3 1 . . Fire 109 | . 60 . 4 . 45 Melee . | . . . . . . Ram . | . . . . . . Kick . | . . . . . . Crush . | . . . . . . Escape Stasis . | . . . . . . Rewire . | . . . . . . Trap . | . . . . . . Miscellaneous . | . . . . . . Route ------- -11/Scrapyard -10/Materials (discovered 4 exits: *Mat x3 / *Min) -10/Mines (discovered 3 exits: *Mat x2 / *Exi) -10/Exiles (discovered 2 exits: *Min x2) -9/Mines -8/Materials (discovered 2 exits: *Fac x2) History --------- Turn | Location | Event 3 | -11/Scrapyard | Discovered new exit (range 15) 63 | -11/Scrapyard | Entered Materials 115 | -10/Materials | Identified exit to Mines 312 | -10/Materials | Build established: Mutant 654 | -10/Materials | Discovered new exit (range 9) 926 | -10/Materials | Core integrity fell below 50% 1071 | -10/Materials | Discovered new exit (range 10) 1131 | -10/Materials | Discovered new exit (range 14) 1351 | -10/Materials | Entered Mines 1436 | -10/Mines | Found a damaged Exp. Sensor Array with a note attached 1443 | -10/Mines | Found Prototype Device 1553 | -10/Mines | Learned location of 1 exit from Materials 1780 | -10/Mines | Learned location of Zion (-6) 1793 | -10/Mines | Discovered new exit (range 12) 1816 | -10/Mines | Identified exit to Materials 1826 | -10/Mines | Discovered exit to Materials (range 10) 2036 | -10/Mines | Deemed a non-threat by the Exiles lab entrance 2036 | -10/Mines | Discovered new exit (range 5) 2044 | -10/Mines | Identified exit to Exiles 2046 | -10/Mines | Entered Exiles 2046 | -10/Exiles | Found Exiles lab abandoned 3248 | -10/Exiles | Discovered new exit (range 14) 3263 | -10/Exiles | Identified exit to Mines 3424 | -10/Exiles | Discovered exit to Mines (range 14) 3441 | -10/Exiles | Entered Mines 3472 | -9/Mines | Discovered new exit (range 9) 3482 | -9/Mines | Identified exit to Materials 3497 | -9/Mines | Entered Materials 3497 | -8/Materials | Accompanied by 2 allies 3497 | -8/Materials | Evolved 4 slots: Utility x4 3498 | -8/Materials | Identified exit to Factory 3502 | -8/Materials | Led the pair of lost Derelicts to an unsafe place 3506 | -8/Materials | Identified Exp. Sensor Array 3812 | -8/Materials | Discovered exit to Factory (range 4) 3835 | -8/Materials | Core integrity fell below 50% 3891 | -8/Materials | Lost 12 parts (1p2n4u5w) 3913 | -8/Materials | Core integrity fell below 20% 3951 | -8/Materials | Destroyed by G-47 Trooper with Particle Gun Last Messages --------------- 03935_ U-05 Engineer builds a Wall. 03937_ Critical hit (Burn: +37). 03938_ U-05 Engineer builds a Wall. 03939_ K-01 Serf collects debris. 03939_ U-05 Engineer builds a Wall. 03942_ G-47 Trooper destroyed. 03942_ K-01 Serf collects debris. 03943_ The unstable cave ceiling collapses. 03943_ U-05 Engineer builds a Wall. 03945_ K-01 Serf collects debris. 03946_ Overheating: System interference. 03946_ Beam Cannon temporarily disabled. 03946_ U-05 Engineer builds a Wall. 03947_ U-05 Engineer lays Concrete. 03948_ K-01 Serf collects debris. 03950_ Overheating: Energy bleed (-26). 03950_ U-05 Engineer builds a Wall. 03950_ U-05 Engineer lays Concrete. 03951_ Overheating: System interference. 03951_ Missile Launcher temporarily disabled. Map ----- +----------------------------------------------------+ | ??????????????????????????????????????????? | | ??????????????????????????????????????????? | | ?????????????? ??????????????????????????? | | ?????????????? #?????????????????????????? | | ?????????????? #?????????????????????????? | | ?????????????? #?????????????????????????? | | ?????????????? #?????????????????????????? | | ?????????????? #?????????????????????????? | | ?????????????? #?????????????????????????? | | ?????????????# #?????????????????????????? | | ?????????????# #?????????????????????????? | | ?????????##### a##????????????????????????? | | ?????????# # #####+#####??????????????? | | ?????????# ?????????????? | | ?????????# # < ?????????????? | | ?????????### ??????????????? | | ????????## #### ???????????????????? | | ????????? # ???????????????????? | | ?????????# #k g #???????????????????? | | ?????????# # = #???????????????????? | | ?????????# =% #???????????????????? | | ??????????# u =* ?????????????????????? | | ??????????## =%** #?????#???????????????? | | ??????????## %%%%!#???? #???????????????? | | ??????????## %%%%!#??? #???????????????? | | ??????????#% u=%@*#?? #???????????????? | | ??????????## ##+###### #???????????????? | | ???????????## ## #####???????????? | | ????????????#### +???????????? | | ???????????????# ###?????????????? | | ???????????????####+#######???????????????? | | ????????????????# #??????????????????? | | ????????????????# [ ! #??????????????????? | | ????????????????# #??????????????????? | | ????????????????# """" #??????????????????? | | ????????????????# """" #????????????????? | | ???????????????## """" #????????????????# | | ???????????????# ######??????????????# | | ???????????????# [ #??????????????# | | ???????????????# !! ###????????????# | | ???????????????# ! !/ + #????????????# | | ???????????????## ""????????# | | ????????????????# *[ # ???????# | | ????????????????# "" %! "?????????# | | ????????????????# """ % "?????????# | | ????????????????# """ # / "?????????# | | ?????????????#### # # ?????????# | | ?????????##### ########### ############# | | ?????????# = ######### # ## | | ?????????#//[!% ## [ *#[ ## | +----------------------------------------------------+ Best States ------------- Heat Dissipation 35 Energy Generation 14 Energy Capacity 260 Matter Stores 300 Matter Capacity 300 Sight Range 16 Robot Scan Range 20 Terrain Scan Range 16 Terrain Scan Density 10 Armor Coverage 150 Evasion (%) 55 Item Schematics ----------------- None Robot Schematics ------------------ None Fabricated ------------ Nothing Alien Tech Used ----------------- None Achievements -------------- None Challenges ------------ None Game ------ Seed ModifiedShadingGun Manual? 0 Play Time 00:22:54 Cumulative 12.4 hours Start 2022.03.17 @ 21:54:47 End 2022.03.17 @ 22:15:28 Sessions 1 Manual Loads 0 Difficulty Rogue Special Mode None Game No. 13 Rogue 5 Adventurer 8 Explorer 0 Win Type - Total 1 Types 1/0/0/0/0/0/0/0/0 Lore% 36 Gallery% 32 Achievement% 34 Wizard Run 0 Options --------- ASCII 0 Keyboard 0 Movement Mouse Keybinds 0 Fullscreen 1 Font 18/Terminus Map View 76x50 Tactical HUD 1 Map Filters NONE Filters NONE Steam 1 RUN: 643f236a-e393-49b1-a8c3-78b6dfe25834